bitfinex-derivatives/quotes_SOLF0:USTF0_20240906
["timestamp","ask_amount","ask_price","bid_price","bid_amount"]
[1725644254128,45.67,125.93,125.81,45.67]
[1725644254305,45.67,125.93,125.85,3.9751]
[1725644254713,49.6426,125.93,125.85,3.9751]
[1725644255012,45.67,125.97,125.86,45.67]
[1725644255414,45.67,125.97,125.9,3.9735]
[1725644255619,45.67,125.99,125.9,45.67]
[1725644255915,4.1748,126.05,125.92,45.67]
[1725644255916,45.67,126.04,125.92,45.67]
[1725644256724,3.9697,126.03,125.96,3.9714]
[1725644256924,2.8049,126.05,125.94,45.67]
[1725644257215,2.8049,126.05,125.9,3.98586418]
[1725644257216,1.3908,126.05,125.96,45.67]
[1725644257614,1.3908,126.05,125.98,45.67]
[1725644257918,1.3908,126.05,125.98,49.58782547]
[1725644258217,45.67,126.12,126.01,45.67]
[1725644259410,45.67,126.12,125.98,3.91782547]
[1725644259411,45.67,126.1,125.98,49.58782547]
[1725644259606,45.67,126.1,126.0,45.67]
[1725644259918,45.67,126.12,126.0,45.67]
[1725644260118,3.9678,126.09,126.02,3.9695]
[1725644260313,45.67,126.1,125.98,49.58782547]
[1725644260513,45.67,126.08,125.96,45.67]
[1725644260719,51.09198269,126.14,125.95,1.3631]
[1725644260720,45.67,126.06,125.95,1.3631]
[1725644261511,45.67,126.02,125.9,49.65586418]
[1725644261913,1.3045,126.05,125.97,45.67]
[1725644262118,45.67,126.08,125.97,49.67343252]
[1725644262413,45.67,126.1,125.99,45.67]
[1725644262719,45.67,126.1,125.98,45.67]
[1725644262923,45.67,126.12,126.0,45.67]
[1725644263311,45.67,126.12,126.03,3.9693]
[1725644263312,3.9673,126.1,126.03,3.9693]
[1725644263517,1.3204,126.13,126.03,45.67]
[1725644263714,1.3204,126.13,126.05,45.67]
[1725644264215,1.4081,126.21,126.07,45.67]
[1725644264418,46.9904,126.2,126.09,45.67]
[1725644265218,46.9904,126.2,126.06,45.67]
[1725644265431,45.67,126.17,126.06,45.67]
[1725644265623,46.9904,126.2,126.08,45.67]
[1725644265624,45.67,126.19,126.08,45.67]
[1725644265815,1.3204,126.2,126.1,45.67]
[1725644266119,45.67,126.17,126.05,45.67]
[1725644266626,45.67,126.14,126.03,45.67]
[1725644266823,45.67,126.14,125.99,1.3394]
[1725644267118,3.93764549,126.18,126.02,45.67]
[1725644267427,45.67,126.12,126.0,45.67]
[1725644267629,3.9673,126.1,126.04,3.969]
[1725644267827,45.67,126.12,126.0,45.67]
[1725644268214,45.67,126.14,126.02,45.67]
[1725644268424,45.67,126.16,126.05,45.67]
[1725644268723,45.67,126.16,126.06,3.9685]
[1725644268724,3.9664,126.13,126.06,3.9685]
[1725644268931,45.67,126.16,126.05,49.71136601]
[1725644269425,45.67,126.18,126.07,45.67]
[1725644269828,45.67,126.18,126.01,45.67]
[1725644269829,45.67,126.18,126.06,3.87906056]
[1725644270026,45.67,126.16,126.05,49.67446037]
[1725644270329,3.9668,126.12,126.06,3.9683]
[1725644270825,45.67,126.16,126.05,49.71612803]
[1725644271025,45.67,126.14,126.03,45.67]
[1725644271222,45.67,126.16,126.05,45.67]
[1725644271420,45.67,126.18,126.07,45.67]
[1725644272019,45.67,126.16,126.03,45.67]
[1725644272219,45.67,126.14,126.03,45.67]
[1725644272419,45.67,126.14,126.06,3.9684]
[1725644272621,45.67,126.16,126.06,3.95462388]
[1725644272823,46.9904,126.2,126.09,45.67]
[1725644273129,1.3204,126.2,126.13,45.67]
[1725644273631,2.6387,126.26,126.16,45.67]
[1725644273820,2.6085,126.26,126.16,45.67]
[1725644274127,2.6085,126.26,126.13,49.57621288]
[1725644274327,45.67,126.24,126.13,49.57621288]
[1725644275624,2.6085,126.26,126.13,49.57621288]
[1725644275826,2.6085,126.26,126.16,45.67]
[1725644276127,45.67,126.25,126.08,2.7254]
[1725644276321,45.67,126.25,126.14,45.67]
[1725644276826,2.6085,126.26,126.11,45.67]
[1725644276827,45.67,126.23,126.11,45.67]
[1725644277223,2.6085,126.26,126.16,45.67]
[1725644277833,3.9637,126.22,126.16,49.6351]
[1725644278331,2.6085,126.26,126.08,6.77569305]
[1725644278332,2.6085,126.26,126.18,45.67]
[1725644278633,2.6085,126.26,126.18,49.6346]
[1725644278936,2.6085,126.26,126.18,45.67]
[1725644279129,2.6085,126.26,126.19,3.9642]
[1725644279130,3.9626,126.25,126.19,3.9642]
[1725644279434,76.45415478,126.45,126.15,3.90078523]
[1725644279435,1.3193,126.31,126.23,45.67]
[1725644279624,3.9612,126.3,126.24,3.9626]
[1725644279821,1.3072,126.35,126.27,45.67]
[1725644280423,1.3072,126.35,126.31,45.67]
[1725644280623,1.3072,126.35,126.26,45.67]
[1725644280624,1.3193,126.43,126.33,45.67]
[1725644280829,1.3193,126.43,126.26,45.67]
[1725644280830,1.3193,126.43,126.35,45.67]
[1725644281033,1.3055,126.44,126.38,45.67]
[1725644281330,45.67,126.43,126.31,45.67]
[1725644281534,45.67,126.41,126.31,45.67]
[1725644281730,1.3055,126.44,126.26,53.53402001]
[1725644281731,3.9601,126.33,126.26,53.53402001]
[1725644282032,45.67,126.37,126.26,49.57192001]
[1725644282231,3.9589,126.37,126.31,45.67]
[1725644282427,4.02118056,126.41,126.31,45.67]
[1725644282635,45.67,126.42,126.31,45.67]
[1725644282831,45.67,126.42,126.31,49.6304]
[1725644283034,1.326,126.43,126.33,45.67]
[1725644283932,45.67,126.38,126.21,1.4114]
[1725644284133,45.67,126.34,126.23,45.67]
[1725644284435,45.67,126.32,126.19,49.6341]
[1725644284737,45.67,126.32,126.19,49.66352901]
[1725644285334,45.67,126.32,126.13,47.0743]
[1725644285335,45.67,126.27,126.16,45.67]
[1725644285531,45.67,126.25,126.12,45.67]
[1725644285832,45.67,126.22,126.1,49.7162005]
[1725644286035,45.67,126.22,126.12,45.67]
[1725644286639,1.3751,126.24,126.07,45.67]
[1725644286640,3.9641,126.21,126.14,49.6359]
[1725644286943,45.67,126.28,126.17,45.67]
[1725644287135,3.9632,126.23,126.17,45.67]
[1725644287351,1.4074,126.31,126.21,45.67]
[1725644287640,1.4074,126.31,126.14,45.67]
[1725644287641,45.67,126.34,126.24,45.67]
[1725644287839,1.4074,126.38,126.28,45.67]
[1725644288037,1.4074,126.38,126.31,45.67]
[1725644288233,3.9677873,126.43,126.33,45.67]
[1725644288432,48.4187,126.45,126.33,45.67]
[1725644289144,46.26180207,126.44,126.3,45.67]
[1725644289334,45.67,126.41,126.3,45.67]
[1725644290334,45.67,126.41,126.27,1.3736]
[1725644290335,3.9596,126.35,126.29,49.631]
[1725644290530,45.67,126.39,126.29,45.67]
[1725644290849,45.67,126.35,126.22,45.67]
[1725644291144,45.67,126.39,126.22,45.67]
[1725644291145,47.0197,126.34,126.22,45.67]
[1725644292431,47.0197,126.34,126.16,1.3156]
[1725644292432,45.67,126.28,126.16,1.3156]
[1725644292634,45.67,126.26,126.16,45.67]
[1725644292834,45.67,126.26,126.14,45.67]
[1725644293030,45.67,126.3,126.18,45.67]
[1725644293237,45.67,126.32,126.21,45.67]
[1725644293643,1.3718,126.33,126.25,45.67]
[1725644294039,1.3718,126.33,126.27,45.67]
[1725644294636,45.67,126.39,126.29,45.67]
[1725644294938,45.67,126.39,126.26,45.67]
[1725644295337,45.67,126.35,126.23,45.67]
[1725644295542,45.67,126.39,126.22,2.6364]
[1725644295543,45.67,126.33,126.22,1.3516]
[1725644295850,45.67,126.39,126.24,45.67]
[1725644295851,45.67,126.35,126.24,45.67]
[1725644296244,45.67,126.37,126.3,3.9607]
[1725644296441,45.67,126.39,126.28,45.67]
[1725644296952,3.9592,126.36,126.28,45.67]
[1725644297353,1.3809,126.42,126.3,45.67]
[1725644297553,45.67,126.41,126.29,45.67]
[1725644297953,3.9586,126.38,126.31,45.67]
[1725644298149,1.3809,126.42,126.33,45.67]
[1725644298655,1.3809,126.42,126.35,45.67]
[1725644299050,5.3383,126.42,126.37,3.9586]
[1725644299449,5.3383,126.42,126.35,45.67]
[1725644299450,1.3809,126.42,126.35,45.67]
[1725644299649,45.67,126.47,126.37,45.67]
[1725644299650,1.2986,126.47,126.37,45.67]
[1725644299846,1.2986,126.47,126.39,45.67]
[1725644300046,1.2897,126.5,126.41,45.67]
[1725644300350,46.9597,126.5,126.38,45.67]
[1725644300749,45.67,126.47,126.38,3.9584]
[1725644301050,1.2897,126.5,126.38,45.67]
[1725644301051,46.9597,126.5,126.38,45.67]
[1725644301249,3.9556,126.47,126.38,49.61277914]
[1725644301547,45.67,126.48,126.37,45.67]
[1725644301743,3.9574,126.42,126.38,3.9583]
[1725644301944,45.67,126.43,126.32,47.0092]
[1725644302345,1.2986,126.47,126.37,45.67]
[1725644302558,1.2897,126.5,126.39,45.67]
[1725644302858,1.2897,126.5,126.45,3.956]
[1725644302859,3.9551,126.49,126.45,3.956]
[1725644303056,1.2897,126.5,126.41,45.67]
[1725644303753,45.67,126.48,126.37,45.67]
[1725644303959,45.67,126.48,126.35,45.67]
[1725644304354,45.67,126.48,126.39,3.9579]
[1725644304355,3.9567,126.44,126.39,3.9579]
[1725644304560,45.67,126.48,126.35,45.67]
[1725644304961,3.9567,126.44,126.39,3.9581]
[1725644305160,45.67,126.48,126.37,45.67]
[1725644305452,3.9565,126.45,126.4,3.9576]
[1725644305658,1.3765,126.49,126.39,45.67]
[1725644305857,1.2897,126.5,126.44,45.67]
[1725644306062,45.67,126.54,126.44,45.67]
[1725644306657,2.8063,126.57,126.44,45.67]
[1725644306658,48.4763,126.57,126.44,45.67]
[1725644306863,48.4763,126.57,126.46,45.67]
[1725644307055,2.8063,126.57,126.46,45.67]
[1725644307258,45.67,126.56,126.46,45.67]
[1725644307560,45.67,126.56,126.43,1.3107]
[1725644307561,45.67,126.55,126.44,49.59428624]
[1725644307755,45.67,126.56,126.46,45.67]
[1725644307962,3.9537,126.54,126.49,3.9548]
[1725644308261,2.8063,126.57,126.49,3.9548]
[1725644308462,3.954,126.53,126.48,3.9551]
[1725644308765,2.8063,126.57,126.48,3.9551]
[1725644308963,3.9516,126.6,126.53,45.67]
[1725644309166,45.67,126.63,126.54,3.9532]
[1725644309361,0.58990849,126.62,126.54,3.9532]
[1725644309558,45.67,126.61,126.5,45.67]
[1725644309759,45.67,126.59,126.48,45.67]
[1725644310069,3.9533,126.55,126.52,3.9541]
[1725644310371,3.9533,126.55,126.46,45.67]
[1725644310372,29.00937055,126.92,126.54,45.67]
[1725644310659,42.55816115,126.94,126.55,1.2821]
[1725644310660,45.67,126.72,126.55,1.2821]
[1725644310859,45.67,126.69,126.58,45.67]
[1725644311259,0.58904183,126.68,126.61,3.951]
[1725644311563,1.3456,126.71,126.62,45.67]
[1725644311756,47.0156,126.71,126.6,45.67]
[1725644311959,0.58879428,126.7,126.6,45.67]
[1725644312359,45.67,126.69,126.58,45.67]
[1725644312861,3.9503,126.65,126.59,3.9518]
[1725644313162,45.67,126.69,126.56,45.67]
[1725644313363,45.67,126.67,126.56,45.67]
[1725644313564,1.387,126.68,126.6,45.67]
[1725644313756,47.0156,126.71,126.6,45.67]
[1725644313962,0.58888488,126.7,126.6,45.67]
[1725644314362,3.9495,126.67,126.61,3.9512]
[1725644314656,3.9495,126.67,126.6,45.67]
[1725644314657,1.3456,126.71,126.62,45.67]
[1725644314858,3.949,126.69,126.63,3.9504]
[1725644315064,1.3456,126.71,126.62,45.67]
[1725644315265,0.58878258,126.7,126.62,45.67]
[1725644315461,3.9493,126.68,126.62,49.6209]
[1725644315667,1.3456,126.71,126.6,45.67]
[1725644315862,1.3456,126.71,126.61,3.951]
[1725644315863,3.9494,126.67,126.61,3.951]
[1725644316062,47.0156,126.71,126.6,45.67]
[1725644316260,47.0156,126.71,126.58,45.67]
[1725644316261,45.67,126.69,126.58,45.67]
[1725644316465,3.9512,126.62,126.57,3.9524]
[1725644316661,1.3641,126.66,126.56,45.67]
[1725644316864,1.3641,126.66,126.58,45.67]
[1725644317171,1.3641,126.66,126.6,45.67]
[1725644317668,5.3141,126.66,126.61,3.9512]
[1725644317871,1.3641,126.66,126.61,3.9512]
[1725644318067,5.3139,126.66,126.61,3.9512]
[1725644318271,1.3641,126.66,126.6,49.6216]
[1725644318475,1.3641,126.66,126.6,45.67]
[1725644318968,45.67,126.65,126.55,1.2821]
[1725644319169,45.67,126.63,126.52,45.67]
[1725644319362,49.64393567,126.63,126.52,45.67]
[1725644319567,45.67,126.63,126.52,45.67]
[1725644319866,45.67,126.63,126.53,3.9535]
[1725644320169,45.67,126.63,126.52,45.67]
[1725644320472,49.54549656,126.63,126.53,3.9537]
[1725644320668,45.67,126.61,126.49,46.9513]
[1725644320866,3.9551,126.49,126.45,45.67]
[1725644321065,3.87549656,126.63,126.43,45.67]
[1725644321066,45.67,126.54,126.43,45.67]
[1725644321265,45.67,126.52,126.42,1.344]
[1725644321568,1.3297,126.56,126.43,45.67]
[1725644321569,3.955,126.49,126.43,45.67]
[1725644321770,1.3297,126.56,126.45,45.67]
[1725644321971,45.67,126.54,126.44,3.9565]
[1725644322171,3.91028629,126.53,126.43,45.67]
[1725644322474,3.9549,126.5,126.45,3.9562]
[1725644323073,1.3297,126.56,126.45,45.67]
[1725644323270,1.3297,126.56,126.5,45.67]
[1725644323863,1.3938,126.62,126.5,45.67]
[1725644324064,2.7495,126.62,126.52,45.67]
[1725644324967,2.7495,126.62,126.49,45.67]
[1725644325163,45.67,126.58,126.47,45.67]
[1725644325371,45.67,126.58,126.45,45.67]
[1725644325570,45.67,126.58,126.48,45.67]
[1725644325772,0.59013203,126.57,126.48,45.67]
[1725644325967,3.954,126.53,126.48,49.6252]
[1725644326679,47.0029,126.6,126.48,49.54549363]
[1725644326868,0.59011447,126.59,126.5,45.67]
[1725644327063,0.59011447,126.59,126.51,3.9543]
[1725644327468,0.59011447,126.59,126.5,45.67]
[1725644327670,1.3329,126.6,126.53,3.9536]
[1725644327876,1.3329,126.6,126.5,45.67]
[1725644328063,0.5899841,126.59,126.5,45.67]
[1725644328469,0.5899841,126.59,126.52,45.67]
[1725644328664,1.3329,126.6,126.52,3.9539]
[1725644328864,1.3329,126.6,126.5,45.67]
[1725644328865,0.58999634,126.59,126.5,45.67]
[1725644329378,0.58999634,126.59,126.52,3.9539]
[1725644329379,3.953,126.56,126.52,3.9539]
[1725644329778,1.3329,126.6,126.5,45.67]
[1725644329977,3.9524,126.58,126.52,45.67]
[1725644330174,2.7495,126.62,126.54,45.67]
[1725644330377,5.3068,126.62,126.58,3.9521]
[1725644330677,1.3557,126.62,126.58,3.9521]
[1725644331179,1.3557,126.62,126.57,3.9524]
[1725644331180,3.9515,126.61,126.57,3.9524]
[1725644331374,3.9515,126.61,126.54,49.55494545]
[1725644331570,2.7228,126.68,126.58,45.67]
[1725644331774,2.7228,126.68,126.58,3.952]
[1725644331775,4.0789,126.68,126.58,3.952]
[1725644331980,45.67,126.64,126.54,45.67]
[1725644332279,45.67,126.64,126.53,1.3213]
[1725644332280,3.9525,126.58,126.53,1.3213]
[1725644332879,3.9525,126.58,126.54,3.9533]
[1725644333283,49.57167588,126.64,126.53,1.3213]
[1725644333484,4.0789,126.68,126.53,1.3213]
[1725644333485,0.5897442,126.63,126.56,45.67]
[1725644333672,0.5897442,126.67,126.58,45.67]
[1725644333879,4.0789,126.68,126.56,45.67]
[1725644334078,46.25938689,126.67,126.56,45.67]
[1725644334275,3.9518,126.6,126.56,49.6227]
[1725644334480,3.88151524,126.65,126.56,45.67]
[1725644334779,3.9515,126.61,126.57,3.9525]
[1725644334981,3.94002062,126.64,126.57,3.9525]
[1725644335285,3.94002062,126.64,126.54,45.67]
[1725644335286,45.67,126.64,126.54,45.67]
[1725644335490,45.67,126.6,126.5,45.67]
[1725644335685,45.67,126.56,126.44,45.67]
[1725644335985,3.9542,126.52,126.44,45.67]
[1725644336188,48.3499,126.58,126.46,45.67]
[1725644336786,2.6799,126.58,126.48,45.67]
[1725644337477,1.391,126.58,126.51,45.67]
[1725644337684,1.391,126.58,126.53,45.67]
[1725644337886,1.391,126.58,126.46,45.67]
[1725644337887,1.391,126.58,126.5,45.67]
[1725644338388,3.9526,126.57,126.53,3.9535]
[1725644338689,1.391,126.58,126.53,45.67]
[1725644338878,3.9518,126.6,126.53,45.67]
[1725644339078,1.2901,126.63,126.53,45.67]
[1725644339079,1.2901,126.63,126.55,45.67]
[1725644340387,3.93762508,126.65,126.55,45.67]
[1725644340585,1.3542,126.66,126.59,45.67]
[1725644340783,1.3542,126.66,126.61,45.67]
[1725644341086,1.3542,126.66,126.54,1.3276]
[1725644341087,45.67,126.69,126.56,45.67]
[1725644341285,45.67,126.69,126.53,49.58192257]
[1725644341286,45.67,126.63,126.53,49.58192257]
[1725644341485,45.67,126.59,126.47,1.3534]
[1725644341787,1.2969,126.58,126.47,1.3534]
[1725644342089,45.67,126.57,126.47,45.67]
[1725644342291,45.67,126.57,126.49,3.955]
[1725644342292,3.93965976,126.56,126.49,3.955]
[1725644342678,3.93965976,126.56,126.47,45.67]
[1725644342884,45.67,126.57,126.47,49.6253]
[1725644343489,3.89179362,126.56,126.47,45.67]
[1725644343790,3.9536,126.54,126.49,45.67]
[1725644344190,1.2969,126.58,126.52,3.9541]
[1725644344385,1.2969,126.58,126.51,45.67]
[1725644344386,5.2493,126.58,126.53,45.67]
[1725644344587,1.2969,126.58,126.53,45.67]
[1725644344889,2.6941,126.62,126.55,45.67]
[1725644345194,2.6941,126.62,126.55,3.9529]
[1725644345391,3.9521,126.59,126.55,3.9529]
[1725644345591,1.3334,126.64,126.55,45.67]
[1725644345778,5.22137115,126.64,126.57,3.9523]
[1725644345978,1.3334,126.64,126.53,45.67]
[1725644346181,45.67,126.61,126.51,45.67]
[1725644346387,3.9552,126.49,126.46,45.67]
[1725644346591,3.9552,126.49,126.44,45.67]
[1725644346780,3.9552,126.49,126.45,3.9561]
[1725644347181,49.55045854,126.54,126.44,45.67]
[1725644347385,3.88045854,126.54,126.44,45.67]
[1725644347589,1.3334,126.55,126.44,45.67]
[1725644347885,1.3334,126.55,126.46,45.67]
[1725644348084,1.3334,126.55,126.48,45.67]
[1725644348995,3.954,126.53,126.49,3.9549]
[1725644349195,3.954,126.53,126.41,1.3354]
[1725644349196,1.3334,126.55,126.44,45.67]
[1725644349498,1.3334,126.55,126.45,3.956]
[1725644349792,1.3334,126.55,126.44,45.67]
[1725644349991,46.26062357,126.54,126.44,45.67]
[1725644350189,45.67,126.54,126.44,45.67]
[1725644350588,45.67,126.54,126.46,3.9557]
[1725644350589,3.9549,126.5,126.46,3.9557]
[1725644350896,45.67,126.54,126.44,45.67]
[1725644351086,45.67,126.54,126.42,45.67]
[1725644351287,45.67,126.54,126.44,45.67]
[1725644351484,1.3334,126.55,126.48,45.67]
[1725644351887,345.3051,126.59,126.52,45.67]
[1725644352092,3.9527,126.57,126.53,3.9536]
[1725644352487,4.05043426,126.56,126.41,3.88942009]
[1725644352695,4.03856312,126.56,126.46,45.67]
[1725644352993,1.3051,126.59,126.5,45.67]
[1725644353197,45.67,126.58,126.48,45.67]
[1725644353388,45.67,126.54,126.42,1.3852]
[1725644353588,1.2807,126.53,126.43,45.67]
[1725644353790,3.9555,126.48,126.44,3.9564]
[1725644353996,1.2807,126.53,126.44,3.9564]
[1725644354294,3.9547,126.5,126.45,3.9561]
[1725644354492,1.2807,126.53,126.43,45.67]
[1725644354889,45.67,126.52,126.42,1.3852]
[1725644355099,45.67,126.49,126.39,45.67]
[1725644355298,45.67,126.49,126.37,45.67]
[1725644355602,3.9568,126.44,126.4,3.9576]
[1725644355897,45.67,126.49,126.4,3.9576]
[1725644356094,45.67,126.49,126.37,45.67]
[1725644356403,1.3904,126.5,126.37,45.67]
[1725644356404,45.67,126.47,126.37,45.67]
[1725644356697,3.9566,126.44,126.4,3.9578]
[1725644357001,4.01529462,126.47,126.37,45.67]
[1725644357195,3.9573,126.42,126.38,3.9584]
[1725644357591,3.95238254,126.45,126.35,45.67]
[1725644357791,45.67,126.46,126.35,45.67]
[1725644357990,45.67,126.46,126.33,2.7897]
[1725644357991,49.69630588,126.46,126.33,2.7897]
[1725644358295,3.9604,126.32,126.25,3.9623]
[1725644358596,45.67,126.36,126.2,1.2819]
[1725644358800,45.67,126.36,126.25,45.67]
[1725644359102,49.60090329,126.36,126.25,45.67]
[1725644359299,45.67,126.36,126.25,45.67]
[1725644359495,5.23032957,126.38,126.29,3.9613]
[1725644359804,2.7321,126.41,126.32,45.67]
[1725644359805,1.3451,126.41,126.32,45.67]
[1725644359996,47.0151,126.41,126.3,45.67]
[1725644360196,4.02313899,126.4,126.3,45.67]
[1725644360400,45.67,126.39,126.29,1.3656]
[1725644360598,45.67,126.37,126.25,45.67]
[1725644360898,3.9613,126.29,126.22,1.3656]
[1725644361090,45.67,126.32,126.22,1.3656]
[1725644361293,45.67,126.35,126.23,45.67]
[1725644361898,3.9609,126.31,126.24,3.9628]
[1725644362095,45.67,126.35,126.23,45.67]
[1725644362299,4.00041504,126.34,126.23,45.67]
[1725644362800,3.9606,126.32,126.26,3.9621]
[1725644363191,3.93067722,126.34,126.23,45.67]
[1725644363401,45.67,126.31,126.22,1.3656]
[1725644364299,45.67,126.29,126.22,1.3656]
[1725644364603,3.9625,126.26,126.22,1.3656]
[1725644365104,45.67,126.33,126.22,1.3656]
[1725644365401,45.67,126.33,126.23,45.67]
[1725644365802,1.392,126.36,126.26,3.962]
[1725644365997,1.392,126.36,126.26,49.54762122]
[1725644366303,3.9598,126.34,126.28,3.9615]
[1725644366498,1.392,126.36,126.27,45.67]
[1725644367003,47.062,126.36,126.23,45.67]
[1725644367304,45.67,126.34,126.23,45.67]
[1725644367495,1.392,126.36,126.22,1.3656]
[1725644367496,47.062,126.36,126.22,1.3656]
[1725644367800,1.392,126.36,126.22,1.3656]
[1725644368000,1.392,126.36,126.28,45.67]
[1725644368305,1.392,126.36,126.29,3.91777322]
[1725644368502,1.392,126.36,126.28,45.67]
[1725644368706,230.99978317,126.41,126.32,45.67]
[1725644368899,4.0378142,126.4,126.32,45.67]
[1725644369106,3.9582,126.39,126.32,45.67]
[1725644369297,4.0378142,126.4,126.32,45.67]
[1725644369699,3.9585,126.38,126.32,49.6301]
[1725644369899,1.3185,126.43,126.32,45.67]
[1725644370409,1.3185,126.43,126.36,45.67]
[1725644370800,5.2757,126.43,126.37,3.9587]
[1725644371002,150.65217259,126.48,126.36,45.67]
[1725644371203,2.6597,126.51,126.34,45.67]
[1725644371204,46.9885,126.5,126.34,45.67]
[1725644371512,45.67,126.54,126.45,45.67]
[1725644371806,0.59095657,126.53,126.45,45.67]
[1725644372004,45.67,126.56,126.47,45.67]
[1725644372197,3.89360458,126.56,126.47,45.67]
[1725644372412,1.4049,126.57,126.47,45.67]
[1725644372614,1.4049,126.57,126.47,49.53628798]
[1725644372902,1.4049,126.57,126.49,45.67]
[1725644373408,5.3576,126.57,126.51,3.9541]
[1725644373623,46.9927,126.61,126.49,45.67]
[1725644373903,3.9524,126.58,126.51,45.67]
[1725644374096,3.98386811,126.6,126.51,45.67]
[1725644374309,51.03874667,126.61,126.51,45.67]
[1725644374502,51.03874667,126.61,126.49,45.67]
[1725644374905,3.9545,126.51,126.47,45.67]
[1725644375109,45.67,126.56,126.45,45.67]
[1725644375411,45.67,126.56,126.48,3.9553]
[1725644375798,45.67,126.54,126.45,45.67]
[1725644376004,49.6745305,126.54,126.43,45.67]
[1725644376205,45.67,126.54,126.45,45.67]
[1725644376398,45.67,126.54,126.4,1.3917]
[1725644376399,3.9535,126.54,126.48,3.9551]
[1725644376714,1.3792,126.55,126.47,49.59110279]
[1725644376906,45.67,126.59,126.47,49.59110279]
[1725644377116,3.9525,126.57,126.49,45.67]
[1725644377407,45.67,126.59,126.49,45.67]
[1725644378107,45.67,126.58,126.47,45.67]
[1725644378312,47.0492,126.6,126.49,45.67]
[1725644378511,45.67,126.58,126.47,45.67]
[1725644379101,0.59009102,126.57,126.47,45.67]
[1725644379306,45.67,126.58,126.47,49.66804956]
[1725644379505,3.9535,126.54,126.47,49.66804956]
[1725644379913,47.0492,126.6,126.49,45.67]
[1725644380208,0.58986341,126.59,126.49,45.67]
[1725644380402,45.67,126.58,126.47,45.67]
[1725644380603,3.954,126.53,126.48,3.9553]
[1725644380911,45.67,126.58,126.47,45.67]
[1725644381110,3.9542,126.52,126.47,49.6254]
[1725644381311,49.61132605,126.54,126.43,45.67]
[1725644381513,45.67,126.52,126.41,45.67]
[1725644381706,3.9551,126.49,126.44,3.9564]
[1725644382105,3.9551,126.49,126.41,45.67]
[1725644382306,3.9551,126.49,126.44,3.9564]
[1725644382912,49.6647262,126.52,126.41,45.67]
[1725644383114,45.67,126.5,126.4,1.3917]
[1725644383912,1.3287,126.51,126.41,45.67]
[1725644384220,1.3287,126.51,126.43,45.67]
[1725644384413,1.3287,126.51,126.44,3.96614914]
[1725644384816,45.67,126.5,126.4,1.3917]
[1725644385219,1.3287,126.51,126.44,3.9565]
[1725644385512,45.67,126.55,126.45,45.67]
[1725644385728,4.54393445,126.54,126.49,3.955]